[Event "Titled Tuesday Blitz November 08 Early 2022"]
[White "Trifan, Andrei Ioan"]
[Black "Wagner, Dennis"]
[WhiteFideId "12967068"]
[BlackFideId "24650684"]
[WhiteElo "2208"]
[BlackElo "2470"]
[Result "0-1"]
[Round "01"]
[TimeControl "180+1"]
[Date "2022.11.09"]
[WhiteClock "0:00:14"]
[BlackClock "0:00:15"]

1. e4 {[%clk 0:02:56]}  e5 {[%clk 0:02:59]} 2. Nf3 {[%clk 0:02:57]}  Nc6 {[%clk 0:03:00]} 3. Bc4 {[%clk 0:02:57]}  Bc5 {[%clk 0:03:00]} 4. d3 {[%clk 0:02:58]}  Nf6 {[%clk 0:03:00]} 5. h3 {[%clk 0:02:58]}  d6 {[%clk 0:02:58]} 6. Nbd2 {[%clk 0:02:57]}  O-O {[%clk 0:02:52]} 7. a4 {[%clk 0:02:55]}  Be6 {[%clk 0:02:46]} 8. O-O {[%clk 0:02:52]}  h6 {[%clk 0:02:45]} 9. Re1 {[%clk 0:02:13]}  a5 {[%clk 0:02:43]} 10. c3 {[%clk 0:02:12]}  Ba7 {[%clk 0:02:31]} 11. Nf1 {[%clk 0:02:05]}  Bxc4 {[%clk 0:02:31]} 12. dxc4 {[%clk 0:02:06]}  Ne7 {[%clk 0:02:04]} 13. Ng3 {[%clk 0:02:04]}  Nd7 {[%clk 0:02:02]} 14. Nh4 {[%clk 0:01:58]}  Ng6 {[%clk 0:01:48]} 15. Nhf5 {[%clk 0:01:56]}  Nf4 {[%clk 0:01:39]} 16. Nh5 {[%clk 0:01:33]}  Nxh5 {[%clk 0:00:47]} 17. Qxh5 {[%clk 0:01:30]}  Qf6 {[%clk 0:00:46]} 18. g4 {[%clk 0:01:19]}  Rae8 {[%clk 0:00:43]} 19. g5 {[%clk 0:01:14]}  Qg6 {[%clk 0:00:43]} 20. Qg4 {[%clk 0:01:03]}  hxg5 {[%clk 0:00:42]} 21. Qxg5 {[%clk 0:00:59]}  Qxg5+ {[%clk 0:00:42]} 22. Bxg5 {[%clk 0:01:00]}  f6 {[%clk 0:00:34]} 23. Be3 {[%clk 0:00:51]}  Bxe3 {[%clk 0:00:34]} 24. Nxe3 {[%clk 0:00:52]}  Nc5 {[%clk 0:00:34]} 25. f3 {[%clk 0:00:46]}  Rf7 {[%clk 0:00:31]} 26. Kh2 {[%clk 0:00:45]}  Ra8 {[%clk 0:00:28]} 27. Rg1 {[%clk 0:00:43]}  Ra6 {[%clk 0:00:23]} 28. Rg2 {[%clk 0:00:43]}  Rb6 {[%clk 0:00:22]} 29. b4 {[%clk 0:00:32]}  axb4 {[%clk 0:00:20]} 30. Nd5 {[%clk 0:00:32]}  Ra6 {[%clk 0:00:18]} 31. cxb4 {[%clk 0:00:32]}  Rxa4 {[%clk 0:00:18]} 32. Rxa4 {[%clk 0:00:24]}  Nxa4 {[%clk 0:00:19]} 33. Ra2 {[%clk 0:00:24]}  Nb6 {[%clk 0:00:19]} 34. Ne3 {[%clk 0:00:22]}  g6 {[%clk 0:00:17]} 35. c5 {[%clk 0:00:23]}  dxc5 {[%clk 0:00:17]} 36. bxc5 {[%clk 0:00:24]}  Nd7 {[%clk 0:00:18]} 37. Ra8+ {[%clk 0:00:24]}  Kg7 {[%clk 0:00:18]} 38. Ra5 {[%clk 0:00:24]}  c6 {[%clk 0:00:18]} 39. Nc4 {[%clk 0:00:24]}  Rf8 {[%clk 0:00:15]} 40. Nd6 {[%clk 0:00:23]}  Rb8 {[%clk 0:00:16]} 41. Kg3 {[%clk 0:00:23]}  Kf8 {[%clk 0:00:10]} 42. f4 {[%clk 0:00:22]}  Ke7 {[%clk 0:00:10]} 43. f5 {[%clk 0:00:23]}  g5 {[%clk 0:00:11]} 44. Kg4 {[%clk 0:00:20]}  Nxc5 {[%clk 0:00:10]} 45. Nc4 {[%clk 0:00:18]}  Nxe4 {[%clk 0:00:10]} 46. Nxe5 {[%clk 0:00:19]}  Nf2+ {[%clk 0:00:09]} 47. Kf3 {[%clk 0:00:19]}  fxe5 {[%clk 0:00:09]} 48. Kxf2 {[%clk 0:00:18]}  Kf6 {[%clk 0:00:10]} 49. Kf3 {[%clk 0:00:19]}  Kxf5 {[%clk 0:00:11]} 50. Ra4 {[%clk 0:00:19]}  b5 {[%clk 0:00:10]} 51. Ra1 {[%clk 0:00:19]}  b4 {[%clk 0:00:10]} 52. Rf1 {[%clk 0:00:19]}  b3 {[%clk 0:00:10]} 53. Ke3+ {[%clk 0:00:20]}  Ke6 {[%clk 0:00:11]} 54. Kd3 {[%clk 0:00:20]}  b2 {[%clk 0:00:11]} 55. Kc2 {[%clk 0:00:21]}  b1=Q+ {[%clk 0:00:12]} 56. Rxb1 {[%clk 0:00:20]}  Rxb1 {[%clk 0:00:13]} 57. Kxb1 {[%clk 0:00:21]}  Kf5 {[%clk 0:00:14]} 58. Kc2 {[%clk 0:00:16]}  Kf4 {[%clk 0:00:14]} 59. h4 {[%clk 0:00:16]}  gxh4 {[%clk 0:00:14]} 60. Kd3 {[%clk 0:00:13]}  h3 {[%clk 0:00:14]} 61. Ke2 {[%clk 0:00:14]}  h2 {[%clk 0:00:15]} 62. Kf2 {[%clk 0:00:14]}  h1=Q {[%clk 0:00:15]} 0-1


[Site "https://www.chess.com"]

[Event "Titled Tuesday Blitz November 08 Early 2022"]
[White "Vaibhav Jayant Raut"]
[Black "Reprintsev, Alexander"]
[WhiteFideId "5089034"]
[BlackFideId "14100541"]
[WhiteElo "2147"]
[BlackElo "2230"]
[Result "1/2-1/2"]
[Round "01"]
[TimeControl "180+1"]
[Date "2022.11.09"]
[WhiteClock "0:00:07"]
[BlackClock "0:00:04"]

1. d4 {[%clk 0:03:00]}  d5 {[%clk 0:02:48]} 2. Nf3 {[%clk 0:02:57]}  Nc6 {[%clk 0:02:47]} 3. Bf4 {[%clk 0:02:57]}  Bg4 {[%clk 0:02:46]} 4. e3 {[%clk 0:02:57]}  e6 {[%clk 0:02:46]} 5. Be2 {[%clk 0:02:53]}  Bd6 {[%clk 0:02:46]} 6. Bg3 {[%clk 0:02:53]}  Nce7 {[%clk 0:02:46]} 7. Nbd2 {[%clk 0:02:49]}  Nf5 {[%clk 0:02:46]} 8. Bxd6 {[%clk 0:02:44]}  Nxd6 {[%clk 0:02:44]} 9. Ne5 {[%clk 0:02:41]}  Bxe2 {[%clk 0:02:40]} 10. Qxe2 {[%clk 0:02:42]}  Ne7 {[%clk 0:02:28]} 11. O-O {[%clk 0:02:41]}  O-O {[%clk 0:02:26]} 12. c4 {[%clk 0:02:40]}  c6 {[%clk 0:02:23]} 13. Rfc1 {[%clk 0:02:34]}  f6 {[%clk 0:02:12]} 14. Nd3 {[%clk 0:02:32]}  Rc8 {[%clk 0:02:11]} 15. Nc5 {[%clk 0:02:26]}  e5 {[%clk 0:02:10]} 16. Ne6 {[%clk 0:02:24]}  Qd7 {[%clk 0:02:08]} 17. Nxf8 {[%clk 0:02:24]}  Rxf8 {[%clk 0:02:09]} 18. cxd5 {[%clk 0:02:23]}  Nxd5 {[%clk 0:02:08]} 19. dxe5 {[%clk 0:02:06]}  fxe5 {[%clk 0:02:05]} 20. Nc4 {[%clk 0:02:06]}  Nf7 {[%clk 0:01:57]} 21. Rd1 {[%clk 0:02:03]}  Qe6 {[%clk 0:01:56]} 22. Na5 {[%clk 0:01:56]}  Qe7 {[%clk 0:01:51]} 23. Rac1 {[%clk 0:01:51]}  Nd6 {[%clk 0:01:47]} 24. Qg4 {[%clk 0:01:33]}  Nf6 {[%clk 0:01:40]} 25. Qb4 {[%clk 0:01:28]}  Nd5 {[%clk 0:01:40]} 26. Qb3 {[%clk 0:01:17]}  Qf7 {[%clk 0:01:26]} 27. Rc2 {[%clk 0:01:16]}  h6 {[%clk 0:01:25]} 28. Nc4 {[%clk 0:01:08]}  Ne4 {[%clk 0:00:53]} 29. Nxe5 {[%clk 0:00:45]}  Qf5 {[%clk 0:00:51]} 30. Nf3 {[%clk 0:00:43]}  Kh8 {[%clk 0:00:48]} 31. h3 {[%clk 0:00:33]}  Qg6 {[%clk 0:00:46]} 32. Kh1 {[%clk 0:00:31]}  Rxf3 {[%clk 0:00:28]} 33. gxf3 {[%clk 0:00:25]}  Qh5 {[%clk 0:00:29]} 34. Kg2 {[%clk 0:00:11]}  Ng5 {[%clk 0:00:28]} 35. Kf1 {[%clk 0:00:09]}  Qxh3+ {[%clk 0:00:27]} 36. Ke2 {[%clk 0:00:07]}  Qxf3+ {[%clk 0:00:27]} 37. Kd2 {[%clk 0:00:08]}  Ne4+ {[%clk 0:00:23]} 38. Kc1 {[%clk 0:00:08]}  h5 {[%clk 0:00:17]} 39. Qxb7 {[%clk 0:00:06]}  Nxf2 {[%clk 0:00:16]} 40. Qc8+ {[%clk 0:00:05]}  Kh7 {[%clk 0:00:15]} 41. Re1 {[%clk 0:00:03]}  Nd3+ {[%clk 0:00:15]} 42. Kd2 {[%clk 0:00:02]}  Nxe1 {[%clk 0:00:16]} 43. Kxe1 {[%clk 0:00:03]}  Qxe3+ {[%clk 0:00:16]} 44. Kd1 {[%clk 0:00:03]}  Qd3+ {[%clk 0:00:17]} 45. Kc1 {[%clk 0:00:04]}  Qf1+ {[%clk 0:00:16]} 46. Kd2 {[%clk 0:00:04]}  Qf4+ {[%clk 0:00:15]} 47. Ke1 {[%clk 0:00:04]}  Qe4+ {[%clk 0:00:14]} 48. Re2 {[%clk 0:00:05]}  Qb1+ {[%clk 0:00:12]} 49. Kf2 {[%clk 0:00:05]}  Qg6 {[%clk 0:00:11]} 50. Qe6 {[%clk 0:00:05]}  Qg5 {[%clk 0:00:08]} 51. Qe4+ {[%clk 0:00:04]}  Kh6 {[%clk 0:00:08]} 52. Qe6+ {[%clk 0:00:04]}  g6 {[%clk 0:00:07]} 53. Qe8 {[%clk 0:00:03]}  Qf4+ {[%clk 0:00:07]} 54. Ke1 {[%clk 0:00:03]}  Qc1+ {[%clk 0:00:07]} 55. Kf2 {[%clk 0:00:04]}  Qf4+ {[%clk 0:00:07]} 56. Kg1 {[%clk 0:00:04]}  Qd4+ {[%clk 0:00:06]} 57. Kf1 {[%clk 0:00:03]}  Qd1+ {[%clk 0:00:05]} 58. Kg2 {[%clk 0:00:04]}  Nf4+ {[%clk 0:00:01]} 59. Kg3 {[%clk 0:00:04]}  Qxe2 {[%clk 0:00:02]} 60. Qf8+ {[%clk 0:00:02]}  Kh7 {[%clk 0:00:01]} 61. Qf7+ {[%clk 0:00:03]}  Kh8 {[%clk 0:00:02]} 62. Qf6+ {[%clk 0:00:03]}  Kh7 {[%clk 0:00:02]} 63. Qf7+ {[%clk 0:00:04]}  Kh8 {[%clk 0:00:03]} 64. Qf8+ {[%clk 0:00:04]}  Kh7 {[%clk 0:00:03]} 65. Qxf4 {[%clk 0:00:05]}  Qe1+ {[%clk 0:00:02]} 66. Kg2 {[%clk 0:00:05]}  Qe7 {[%clk 0:00:03]} 67. Qc4 {[%clk 0:00:04]}  Qg7 {[%clk 0:00:03]} 68. Qxc6 {[%clk 0:00:04]}  Qxb2+ {[%clk 0:00:03]} 69. Kh3 {[%clk 0:00:05]}  Qxa2 {[%clk 0:00:04]} 70. Qd7+ {[%clk 0:00:05]}  Kh6 {[%clk 0:00:02]} 71. Qc8 {[%clk 0:00:06]}  Qb3+ {[%clk 0:00:01]} 72. Kh2 {[%clk 0:00:06]}  Qb6 {[%clk 0:00:02]} 73. Qh8+ {[%clk 0:00:05]}  Kg5 {[%clk 0:00:02]} 74. Qe5+ {[%clk 0:00:06]}  Kh6 {[%clk 0:00:03]} 75. Qh8+ {[%clk 0:00:06]}  Kg5 {[%clk 0:00:04]} 76. Qe5+ {[%clk 0:00:07]}  Kh6 {[%clk 0:00:04]} 77. Qh8+ {[%clk 0:00:07]} 1/2-1/2


[Site "https://www.chess.com"]

[Event "Titled Tuesday Blitz November 08 Early 2022"]
[White "Weetik, Vjacheslav"]
[Black "Fawzy, Adham"]
[WhiteFideId "4153472"]
[BlackFideId "10613129"]
[WhiteElo "2469"]
[BlackElo "2541"]
[Result "1-0"]
[Round "01"]
[TimeControl "180+1"]
[Date "2022.11.09"]
[WhiteClock "0:00:48"]
[BlackClock "0:00:22"]

1. d4 {[%clk 0:02:55]}  Nf6 {[%clk 0:02:58]} 2. c4 {[%clk 0:02:47]}  g6 {[%clk 0:02:58]} 3. Nc3 {[%clk 0:02:47]}  Bg7 {[%clk 0:02:59]} 4. e4 {[%clk 0:02:46]}  d6 {[%clk 0:02:59]} 5. Nf3 {[%clk 0:02:46]}  O-O {[%clk 0:02:59]} 6. Be2 {[%clk 0:02:45]}  e5 {[%clk 0:03:00]} 7. O-O {[%clk 0:02:45]}  Nc6 {[%clk 0:02:59]} 8. dxe5 {[%clk 0:02:45]}  dxe5 {[%clk 0:02:58]} 9. Bg5 {[%clk 0:02:45]}  Be6 {[%clk 0:02:48]} 10. Nd5 {[%clk 0:02:30]}  Nd4 {[%clk 0:01:40]} 11. Nxd4 {[%clk 0:02:20]}  exd4 {[%clk 0:01:41]} 12. e5 {[%clk 0:02:12]}  Nxd5 {[%clk 0:01:00]} 13. Bxd8 {[%clk 0:02:08]}  Raxd8 {[%clk 0:00:56]} 14. cxd5 {[%clk 0:02:08]}  Rxd5 {[%clk 0:00:57]} 15. Bc4 {[%clk 0:01:38]}  Rxe5 {[%clk 0:00:52]} 16. Bxe6 {[%clk 0:01:37]}  Rxe6 {[%clk 0:00:53]} 17. Re1 {[%clk 0:01:37]}  Rd8 {[%clk 0:00:45]} 18. Rxe6 {[%clk 0:01:32]}  fxe6 {[%clk 0:00:46]} 19. Qd3 {[%clk 0:01:24]}  c5 {[%clk 0:00:42]} 20. Re1 {[%clk 0:01:22]}  e5 {[%clk 0:00:41]} 21. b3 {[%clk 0:01:18]}  b6 {[%clk 0:00:37]} 22. g3 {[%clk 0:01:18]}  Bf6 {[%clk 0:00:34]} 23. Kg2 {[%clk 0:01:15]}  Kg7 {[%clk 0:00:34]} 24. h4 {[%clk 0:01:16]}  h6 {[%clk 0:00:33]} 25. Qe4 {[%clk 0:01:09]}  Rd7 {[%clk 0:00:32]} 26. Qc6 {[%clk 0:01:08]}  Re7 {[%clk 0:00:30]} 27. a4 {[%clk 0:01:01]}  d3 {[%clk 0:00:28]} 28. Qd5 {[%clk 0:00:56]}  e4 {[%clk 0:00:23]} 29. Rxe4 {[%clk 0:00:53]}  Rxe4 {[%clk 0:00:20]} 30. Qxe4 {[%clk 0:00:53]}  d2 {[%clk 0:00:21]} 31. Qc2 {[%clk 0:00:50]}  Bc3 {[%clk 0:00:22]} 32. Qxc3+ {[%clk 0:00:48]} 1-0


[Site "https://www.chess.com"]

[Event "Titled Tuesday Blitz November 08 Early 2022"]
[White "Winkels, Marcel"]
[Black "Bilan, Danila"]
[WhiteFideId "1003887"]
[BlackFideId "24161918"]
[WhiteElo "1900"]
[BlackElo "2173"]
[Result "1-0"]
[Round "01"]
[TimeControl "180+1"]
[Date "2022.11.09"]
[WhiteClock "0:00:30"]
[BlackClock "0:00:02"]

1. e4 {[%clk 0:02:59]}  c6 {[%clk 0:02:59]} 2. d4 {[%clk 0:02:57]}  d5 {[%clk 0:03:00]} 3. exd5 {[%clk 0:02:58]}  cxd5 {[%clk 0:03:00]} 4. c4 {[%clk 0:02:58]}  Nf6 {[%clk 0:03:00]} 5. Nc3 {[%clk 0:02:59]}  Nc6 {[%clk 0:03:00]} 6. Bg5 {[%clk 0:02:57]}  e6 {[%clk 0:02:53]} 7. c5 {[%clk 0:02:51]}  Be7 {[%clk 0:02:52]} 8. Nf3 {[%clk 0:02:50]}  Ne4 {[%clk 0:02:51]} 9. Bxe7 {[%clk 0:02:39]}  Qxe7 {[%clk 0:02:50]} 10. Bb5 {[%clk 0:02:35]}  Bd7 {[%clk 0:02:47]} 11. Bxc6 {[%clk 0:02:32]}  Bxc6 {[%clk 0:02:48]} 12. Ne5 {[%clk 0:02:31]}  O-O {[%clk 0:02:24]} 13. Nxe4 {[%clk 0:02:27]}  dxe4 {[%clk 0:02:22]} 14. Nxc6 {[%clk 0:02:28]}  bxc6 {[%clk 0:02:23]} 15. Qc2 {[%clk 0:02:26]}  f5 {[%clk 0:02:21]} 16. O-O {[%clk 0:02:19]}  Rad8 {[%clk 0:02:21]} 17. Rad1 {[%clk 0:02:14]}  Rd5 {[%clk 0:02:21]} 18. f3 {[%clk 0:02:13]}  exf3 {[%clk 0:02:15]} 19. Rxf3 {[%clk 0:02:12]}  Rfd8 {[%clk 0:02:13]} 20. Qa4 {[%clk 0:02:01]}  Qd7 {[%clk 0:01:55]} 21. Ra3 {[%clk 0:01:28]}  Rxc5 {[%clk 0:00:51]} 22. Qxa7 {[%clk 0:01:02]}  Qxa7 {[%clk 0:00:44]} 23. Rxa7 {[%clk 0:01:02]}  Rc2 {[%clk 0:00:45]} 24. Rb7 {[%clk 0:00:49]}  e5 {[%clk 0:00:30]} 25. a4 {[%clk 0:00:48]}  exd4 {[%clk 0:00:24]} 26. a5 {[%clk 0:00:43]}  d3 {[%clk 0:00:11]} 27. a6 {[%clk 0:00:42]}  d2 {[%clk 0:00:11]} 28. Kf2 {[%clk 0:00:41]}  Kf8 {[%clk 0:00:04]} 29. a7 {[%clk 0:00:34]}  Rc5 {[%clk 0:00:02]} 30. Rb8 {[%clk 0:00:31]}  Rd5 {[%clk 0:00:02]} 31. a8=Q {[%clk 0:00:30]} 1-0


[Site "https://www.chess.com"]

[Event "Titled Tuesday Blitz November 08 Early 2022"]
[White "Yuan, Qingyu"]
[Black "Sanchez, Robert"]
[WhiteFideId "8609772"]
[BlackFideId "2034360"]
[WhiteElo "2359"]
[BlackElo "2403"]
[Result "1-0"]
[Round "01"]
[TimeControl "180+1"]
[Date "2022.11.09"]
[WhiteClock "0:00:18"]
[BlackClock "0:01:48"]

1. e4 {[%clk 0:03:00]}  e6 {[%clk 0:02:59]} 2. d4 {[%clk 0:02:59]}  d5 {[%clk 0:02:58]} 3. Nc3 {[%clk 0:03:00]}  Nf6 {[%clk 0:02:58]} 4. Bg5 {[%clk 0:02:59]}  Be7 {[%clk 0:02:58]} 5. e5 {[%clk 0:02:59]}  Nfd7 {[%clk 0:02:58]} 6. Bxe7 {[%clk 0:02:59]}  Qxe7 {[%clk 0:02:59]} 7. Qd2 {[%clk 0:03:00]}  a6 {[%clk 0:02:59]} 8. Nd1 {[%clk 0:02:59]}  c5 {[%clk 0:02:56]} 9. c3 {[%clk 0:03:00]}  Nc6 {[%clk 0:02:56]} 10. f4 {[%clk 0:03:00]}  f6 {[%clk 0:02:56]} 11. Nf3 {[%clk 0:03:00]}  fxe5 {[%clk 0:02:56]} 12. fxe5 {[%clk 0:03:00]}  O-O {[%clk 0:02:57]} 13. Nf2 {[%clk 0:02:58]}  cxd4 {[%clk 0:02:55]} 14. cxd4 {[%clk 0:02:58]}  Nb6 {[%clk 0:02:53]} 15. b3 {[%clk 0:02:58]}  Bd7 {[%clk 0:02:52]} 16. Be2 {[%clk 0:02:58]}  Rac8 {[%clk 0:02:52]} 17. O-O {[%clk 0:02:53]}  Be8 {[%clk 0:02:50]} 18. Rac1 {[%clk 0:02:46]}  Bh5 {[%clk 0:02:49]} 19. Qe3 {[%clk 0:02:35]}  Bxf3 {[%clk 0:02:49]} 20. Bxf3 {[%clk 0:02:35]}  Qb4 {[%clk 0:02:45]} 21. Bg4 {[%clk 0:01:43]}  Qxd4 {[%clk 0:02:05]} 22. Bxe6+ {[%clk 0:01:37]}  Kh8 {[%clk 0:02:05]} 23. Qxd4 {[%clk 0:01:28]}  Nxd4 {[%clk 0:02:05]} 24. Bxc8 {[%clk 0:00:52]}  Ne2+ {[%clk 0:02:04]} 25. Kh1 {[%clk 0:00:52]}  Nxc1 {[%clk 0:02:04]} 26. Rxc1 {[%clk 0:00:52]}  Rxc8 {[%clk 0:01:55]} 27. Rxc8+ {[%clk 0:00:44]}  Nxc8 {[%clk 0:01:56]} 28. Nd3 {[%clk 0:00:43]}  Kg8 {[%clk 0:01:54]} 29. Nc5 {[%clk 0:00:41]}  Kf7 {[%clk 0:01:52]} 30. Nxb7 {[%clk 0:00:38]}  Ke6 {[%clk 0:01:52]} 31. Nc5+ {[%clk 0:00:34]}  Kxe5 {[%clk 0:01:52]} 32. Nxa6 {[%clk 0:00:35]}  d4 {[%clk 0:01:53]} 33. Kg1 {[%clk 0:00:35]}  Ke4 {[%clk 0:01:52]} 34. Kf2 {[%clk 0:00:32]}  Nd6 {[%clk 0:01:52]} 35. Ke2 {[%clk 0:00:29]}  d3+ {[%clk 0:01:51]} 36. Kd1 {[%clk 0:00:23]}  Ke3 {[%clk 0:01:49]} 37. Nc5 {[%clk 0:00:18]}  Ne4 {[%clk 0:01:48]} 38. Nxe4 {[%clk 0:00:18]} 1-0


[Site "https://www.chess.com"]

[Event "Titled Tuesday Blitz November 08 Early 2022"]
[White "Zemlyanskii, Ivan"]
[Black "Cabezas Solano, David Alejandro"]
[WhiteFideId "24249971"]
[BlackFideId "6507522"]
[WhiteElo "2107"]
[BlackElo "2035"]
[Result "1-0"]
[Round "01"]
[TimeControl "180+1"]
[Date "2022.11.09"]
[WhiteClock "0:00:11"]
[BlackClock "0:00:10"]

1. d4 {[%clk 0:02:52]}  Nf6 {[%clk 0:02:55]} 2. c4 {[%clk 0:02:53]}  e6 {[%clk 0:02:54]} 3. Nf3 {[%clk 0:02:53]}  d5 {[%clk 0:02:55]} 4. g3 {[%clk 0:02:54]}  Be7 {[%clk 0:02:55]} 5. Bg2 {[%clk 0:02:54]}  O-O {[%clk 0:02:56]} 6. Nc3 {[%clk 0:02:54]}  dxc4 {[%clk 0:02:54]} 7. Ne5 {[%clk 0:02:55]}  Qd6 {[%clk 0:02:54]} 8. O-O {[%clk 0:02:50]}  Rd8 {[%clk 0:02:51]} 9. Bf4 {[%clk 0:02:44]}  Qa6 {[%clk 0:02:49]} 10. a4 {[%clk 0:02:41]}  Bd7 {[%clk 0:02:25]} 11. Qc2 {[%clk 0:02:22]}  Nc6 {[%clk 0:02:18]} 12. Nb5 {[%clk 0:02:21]}  Rac8 {[%clk 0:01:58]} 13. Nxd7 {[%clk 0:02:01]}  Rxd7 {[%clk 0:01:55]} 14. e3 {[%clk 0:01:34]}  Na5 {[%clk 0:01:37]} 15. Rac1 {[%clk 0:01:01]}  Nd5 {[%clk 0:01:28]} 16. Rfd1 {[%clk 0:00:25]}  g5 {[%clk 0:01:14]} 17. Be5 {[%clk 0:00:24]}  f6 {[%clk 0:01:15]} 18. Bxd5 {[%clk 0:00:18]}  exd5 {[%clk 0:01:15]} 19. Qf5 {[%clk 0:00:18]}  Rdd8 {[%clk 0:00:45]} 20. Bxc7 {[%clk 0:00:18]}  Rxc7 {[%clk 0:00:35]} 21. Nxc7 {[%clk 0:00:19]}  Qc6 {[%clk 0:00:35]} 22. Nb5 {[%clk 0:00:16]}  a6 {[%clk 0:00:34]} 23. Nc3 {[%clk 0:00:16]}  Nb3 {[%clk 0:00:34]} 24. Rb1 {[%clk 0:00:09]}  b5 {[%clk 0:00:21]} 25. axb5 {[%clk 0:00:10]}  axb5 {[%clk 0:00:21]} 26. e4 {[%clk 0:00:11]}  dxe4 {[%clk 0:00:21]} 27. d5 {[%clk 0:00:12]}  Qc5 {[%clk 0:00:19]} 28. Qe6+ {[%clk 0:00:12]}  Kg7 {[%clk 0:00:19]} 29. Nxe4 {[%clk 0:00:11]}  Qb4 {[%clk 0:00:18]} 30. d6 {[%clk 0:00:11]}  Bf8 {[%clk 0:00:10]} 31. Qxf6+ {[%clk 0:00:11]} 1-0


[Site "https://www.chess.com"]

[Event "Titled Tuesday Blitz November 08 Early 2022"]
[White "Zia, Tahsin Tajwar"]
[Black "Hajek, Oskar"]
[WhiteFideId "10211888"]
[BlackFideId "374512"]
[WhiteElo "2061"]
[BlackElo "2144"]
[Result "1-0"]
[Round "01"]
[TimeControl "180+1"]
[Date "2022.11.09"]
[WhiteClock "0:00:03"]
[BlackClock "0:00:02"]

1. d4 {[%clk 0:03:00]}  d5 {[%clk 0:02:59]} 2. Nf3 {[%clk 0:03:00]}  Bf5 {[%clk 0:02:58]} 3. c4 {[%clk 0:02:59]}  e6 {[%clk 0:02:57]} 4. Nc3 {[%clk 0:02:58]}  Nf6 {[%clk 0:02:55]} 5. Qb3 {[%clk 0:02:57]}  Nc6 {[%clk 0:02:54]} 6. cxd5 {[%clk 0:02:54]}  exd5 {[%clk 0:02:53]} 7. e3 {[%clk 0:02:54]}  Be7 {[%clk 0:02:41]} 8. Bb5 {[%clk 0:02:53]}  O-O {[%clk 0:02:40]} 9. O-O {[%clk 0:02:50]}  a6 {[%clk 0:02:38]} 10. Bxc6 {[%clk 0:02:50]}  bxc6 {[%clk 0:02:39]} 11. Ne5 {[%clk 0:02:49]}  Qd6 {[%clk 0:02:18]} 12. Na4 {[%clk 0:02:37]}  Nd7 {[%clk 0:02:13]} 13. Nxd7 {[%clk 0:02:37]}  Bxd7 {[%clk 0:02:13]} 14. Nc5 {[%clk 0:02:34]}  Bf5 {[%clk 0:02:01]} 15. Qc3 {[%clk 0:02:27]}  Qg6 {[%clk 0:01:54]} 16. f3 {[%clk 0:02:17]}  Bd6 {[%clk 0:01:40]} 17. Nb7 {[%clk 0:01:46]}  Be7 {[%clk 0:01:31]} 18. Na5 {[%clk 0:01:38]}  Bd7 {[%clk 0:01:20]} 19. a3 {[%clk 0:01:29]}  h5 {[%clk 0:01:16]} 20. b4 {[%clk 0:01:28]}  h4 {[%clk 0:01:16]} 21. Bd2 {[%clk 0:01:20]}  h3 {[%clk 0:01:14]} 22. g3 {[%clk 0:01:19]}  Bd6 {[%clk 0:01:07]} 23. Kf2 {[%clk 0:01:15]}  Be7 {[%clk 0:01:03]} 24. Rac1 {[%clk 0:01:12]}  c5 {[%clk 0:00:53]} 25. bxc5 {[%clk 0:01:06]}  c6 {[%clk 0:00:51]} 26. Rb1 {[%clk 0:00:51]}  Rab8 {[%clk 0:00:49]} 27. Rb4 {[%clk 0:00:43]}  Rb5 {[%clk 0:00:45]} 28. Rxb5 {[%clk 0:00:29]}  axb5 {[%clk 0:00:46]} 29. Nb3 {[%clk 0:00:24]}  Ra8 {[%clk 0:00:41]} 30. Nc1 {[%clk 0:00:24]}  Bd8 {[%clk 0:00:33]} 31. Qb2 {[%clk 0:00:15]}  Bf5 {[%clk 0:00:26]} 32. Ne2 {[%clk 0:00:14]}  Bd3 {[%clk 0:00:25]} 33. Re1 {[%clk 0:00:14]}  Bc4 {[%clk 0:00:21]} 34. Nf4 {[%clk 0:00:12]}  Qf6 {[%clk 0:00:16]} 35. Bb4 {[%clk 0:00:10]}  Qh6 {[%clk 0:00:14]} 36. e4 {[%clk 0:00:08]}  Bg5 {[%clk 0:00:13]} 37. Qd2 {[%clk 0:00:07]}  Kh7 {[%clk 0:00:11]} 38. exd5 {[%clk 0:00:06]}  cxd5 {[%clk 0:00:12]} 39. Re5 {[%clk 0:00:05]}  f6 {[%clk 0:00:11]} 40. Re7 {[%clk 0:00:04]}  Kh8 {[%clk 0:00:05]} 41. c6 {[%clk 0:00:03]}  Rc8 {[%clk 0:00:05]} 42. c7 {[%clk 0:00:03]}  Kh7 {[%clk 0:00:05]} 43. Qc2+ {[%clk 0:00:03]}  Kh8 {[%clk 0:00:03]} 44. Ng6+ {[%clk 0:00:03]}  Kg8 {[%clk 0:00:03]} 45. Qf5 {[%clk 0:00:04]}  Rxc7 {[%clk 0:00:02]} 46. Qe6+ {[%clk 0:00:03]}  Kh7 {[%clk 0:00:02]} 47. Nf8+ {[%clk 0:00:03]}  Kh8 {[%clk 0:00:02]} 48. Re8 {[%clk 0:00:03]} 1-0


[Site "https://www.chess.com"]